[Event "*** Titled Tuesday Blitz"]
[Site "Chess.com"]
[Date "2020.05.05"]
[Round "2"]
[White "OparinGrigoriy"]
[Black "nurgyulsalimova"]
[Result "0-1"]
[WhiteElo "2920"]
[BlackElo "2585"]
[TimeControl "180+1"]
[EndTime "10:18:06 PDT"]
[Termination "nurgyulsalimova won by checkmate"]

1. Nf3 {[%clk 0:03:00.9]} 1... d5 {[%clk 0:02:59.3]} 2. g3 {[%clk 0:03:01.3]}
2... Nf6 {[%clk 0:02:59.7]} 3. Bg2 {[%clk 0:03:01.8]} 3... e6 {[%clk 0:03:00.1]}
4. c4 {[%clk 0:03:01.4]} 4... Be7 {[%clk 0:03:00.4]} 5. d4 {[%clk 0:03:02.1]}
5... O-O {[%clk 0:03:00.7]} 6. Nc3 {[%clk 0:03:03]} 6... dxc4 {[%clk 0:02:47.1]}
7. Ne5 {[%clk 0:03:03.3]} 7... Qd6 {[%clk 0:02:36.3]} 8. O-O {[%clk 0:02:59.3]}
8... Qa6 {[%clk 0:02:33.7]} 9. a4 {[%clk 0:02:58.3]} 9... c6 {[%clk 0:02:06.9]}
10. Bg5 {[%clk 0:01:24]} 10... Nbd7 {[%clk 0:01:40.3]} 11. Nxd7 {[%clk 0:01:11]}
11... Bxd7 {[%clk 0:01:40.1]} 12. e4 {[%clk 0:01:11.6]} 12... Rfe8 {[%clk
0:01:37.8]} 13. Qe2 {[%clk 0:01:09.2]} 13... h6 {[%clk 0:01:35.5]} 14. Bf4
{[%clk 0:01:07.6]} 14... Rad8 {[%clk 0:01:29]} 15. Rfd1 {[%clk 0:01:06.1]} 15...
Bc8 {[%clk 0:01:21.2]} 16. Bf1 {[%clk 0:00:55.8]} 16... Bb4 {[%clk 0:01:17.2]}
17. f3 {[%clk 0:00:50.4]} 17... c5 {[%clk 0:01:00.2]} 18. dxc5 {[%clk
0:00:41.2]} 18... Bxc5+ {[%clk 0:00:58.8]} 19. Kg2 {[%clk 0:00:41.6]} 19... Qb6
{[%clk 0:00:56.6]} 20. a5 {[%clk 0:00:26]} 20... Qb3 {[%clk 0:00:43.1]} 21. Be5
{[%clk 0:00:26.3]} 21... b5 {[%clk 0:00:27.6]} 22. axb6 {[%clk 0:00:25.7]} 22...
axb6 {[%clk 0:00:26.5]} 23. Rab1 {[%clk 0:00:18.4]} 23... b5 {[%clk 0:00:23.9]}
24. Bxf6 {[%clk 0:00:15.7]} 24... gxf6 {[%clk 0:00:24.8]} 25. h4 {[%clk
0:00:14.4]} 25... b4 {[%clk 0:00:22.9]} 26. Nb5 {[%clk 0:00:14.6]} 26... Bb6
{[%clk 0:00:06]} 27. Qxc4 {[%clk 0:00:13]} 27... Qe3 {[%clk 0:00:05.9]} 28. Kh3
{[%clk 0:00:11.1]} 28... e5+ {[%clk 0:00:05.6]} 29. Kh2 {[%clk 0:00:09.9]} 29...
Qg1# {[%clk 0:00:05]} 0-1

[Event "*** Titled Tuesday Blitz"]
[Site "Chess.com"]
[Date "2020.05.05"]
[Round "2"]
[White "827883"]
[Black "Mili_Brizzi"]
[Result "0-1"]
[WhiteElo "2209"]
[BlackElo "2444"]
[TimeControl "180+1"]
[EndTime "10:18:06 PDT"]
[Termination "Mili_Brizzi won by resignation"]

1. e4 {[%clk 0:03:00.9]} 1... e5 {[%clk 0:02:59.5]} 2. Nf3 {[%clk 0:03:01.1]}
2... Nc6 {[%clk 0:02:59.7]} 3. Bb5 {[%clk 0:03:01.3]} 3... a6 {[%clk 0:03:00.1]}
4. Ba4 {[%clk 0:03:01.6]} 4... d6 {[%clk 0:03:00.5]} 5. c3 {[%clk 0:03:01.5]}
5... Bd7 {[%clk 0:02:58.1]} 6. O-O {[%clk 0:03:01.6]} 6... g6 {[%clk 0:02:57.8]}
7. d4 {[%clk 0:03:00.6]} 7... Bg7 {[%clk 0:02:54.3]} 8. Re1 {[%clk 0:02:56.1]}
8... Nf6 {[%clk 0:02:46.9]} 9. h3 {[%clk 0:02:55]} 9... O-O {[%clk 0:02:34.2]}
10. Nbd2 {[%clk 0:02:54.7]} 10... b5 {[%clk 0:02:11.5]} 11. Bc2 {[%clk
0:02:54.2]} 11... Re8 {[%clk 0:02:10.8]} 12. Nf1 {[%clk 0:02:52.3]} 12... Qe7
{[%clk 0:01:57.2]} 13. Ng3 {[%clk 0:02:49.4]} 13... Rad8 {[%clk 0:01:50.1]} 14.
a4 {[%clk 0:02:45.5]} 14... exd4 {[%clk 0:01:44.1]} 15. axb5 {[%clk 0:02:40.8]}
15... axb5 {[%clk 0:01:39.8]} 16. cxd4 {[%clk 0:02:40.3]} 16... Nb4 {[%clk
0:01:37]} 17. Bb3 {[%clk 0:02:37.2]} 17... c5 {[%clk 0:01:36.9]} 18. Bd2 {[%clk
0:02:19.2]} 18... Nd3 {[%clk 0:01:32.5]} 19. Re3 {[%clk 0:02:09.2]} 19... Nxb2
{[%clk 0:01:27.4]} 20. Qc2 {[%clk 0:02:08.5]} 20... cxd4 {[%clk 0:01:23.2]} 21.
Nxd4 {[%clk 0:02:08.5]} 21... Nc4 {[%clk 0:01:19.9]} 22. Bxc4 {[%clk 0:02:07.7]}
22... bxc4 {[%clk 0:01:11.7]} 23. Qxc4 {[%clk 0:01:52.2]} 23... Rc8 {[%clk
0:01:11.5]} 24. Qe2 {[%clk 0:01:48.3]} 24... h5 {[%clk 0:00:58.4]} 25. Ra7
{[%clk 0:01:42.9]} 25... h4 {[%clk 0:00:54.7]} 26. Nf1 {[%clk 0:01:25.4]} 26...
Nxe4 {[%clk 0:00:53.6]} 27. Nf3 {[%clk 0:01:13.3]} 27... d5 {[%clk 0:00:50.4]}
28. Bb4 {[%clk 0:01:07.5]} 28... Qxb4 {[%clk 0:00:44.1]} 29. Rxd7 {[%clk
0:01:07]} 29... Bh6 {[%clk 0:00:38.6]} 30. Qd3 {[%clk 0:00:41.2]} 30... Bxe3
{[%clk 0:00:35.6]} 31. Nxe3 {[%clk 0:00:37.2]} 31... Rc1+ {[%clk 0:00:32]} 32.
Kh2 {[%clk 0:00:36]} 32... Qb8+ {[%clk 0:00:28]} 33. g3 {[%clk 0:00:30.1]} 33...
hxg3+ {[%clk 0:00:26.6]} 34. Kg2 {[%clk 0:00:30.3]} 34... gxf2 {[%clk
0:00:24.1]} 35. Nf1 {[%clk 0:00:25]} 35... Rxf1 {[%clk 0:00:20.8]} 36. Kxf1
{[%clk 0:00:24.2]} 36... Qg3 {[%clk 0:00:18.4]} 37. Qxd5 {[%clk 0:00:21.3]}
37... Qxh3+ {[%clk 0:00:16.6]} 38. Ke2 {[%clk 0:00:21.4]} 38... f1=Q+ {[%clk
0:00:16.9]} 0-1

[Event "*** Titled Tuesday Blitz"]
[Site "Chess.com"]
[Date "2020.05.05"]
[Round "2"]
[White "NewBornNow"]
[Black "Sjakkerntobi"]
[Result "0-1"]
[WhiteElo "2592"]
[BlackElo "2243"]
[TimeControl "180+1"]
[EndTime "10:18:07 PDT"]
[Termination "Sjakkerntobi won by resignation"]

1. e4 {[%clk 0:03:00.9]} 1... e6 {[%clk 0:02:59.7]} 2. d3 {[%clk 0:02:58.6]}
2... d5 {[%clk 0:02:59.9]} 3. Qe2 {[%clk 0:02:58.3]} 3... c5 {[%clk 0:02:59]} 4.
Nf3 {[%clk 0:02:57.9]} 4... Nc6 {[%clk 0:02:59.2]} 5. g3 {[%clk 0:02:57.9]} 5...
Nf6 {[%clk 0:02:58.6]} 6. Bg2 {[%clk 0:02:58]} 6... Be7 {[%clk 0:02:58.9]} 7.
O-O {[%clk 0:02:57.8]} 7... O-O {[%clk 0:02:59.3]} 8. e5 {[%clk 0:02:56.8]} 8...
Nd7 {[%clk 0:02:58.9]} 9. h4 {[%clk 0:02:53.8]} 9... b5 {[%clk 0:02:58.4]} 10.
Bf4 {[%clk 0:02:53.1]} 10... Bb7 {[%clk 0:02:55]} 11. Nbd2 {[%clk 0:02:52.4]}
11... Qb6 {[%clk 0:02:54.9]} 12. Nh2 {[%clk 0:02:41.2]} 12... Rfc8 {[%clk
0:02:54.2]} 13. c3 {[%clk 0:02:37]} 13... Qd8 {[%clk 0:02:52.9]} 14. Ndf3 {[%clk
0:02:31.2]} 14... a5 {[%clk 0:02:47.8]} 15. h5 {[%clk 0:02:30.9]} 15... h6
{[%clk 0:02:46.9]} 16. g4 {[%clk 0:02:28.1]} 16... b4 {[%clk 0:02:44.7]} 17. c4
{[%clk 0:02:27.1]} 17... Nd4 {[%clk 0:02:35.3]} 18. Nxd4 {[%clk 0:02:26.4]}
18... cxd4 {[%clk 0:02:36.2]} 19. cxd5 {[%clk 0:02:25.5]} 19... Bxd5 {[%clk
0:02:33.5]} 20. Bxd5 {[%clk 0:02:24.5]} 20... exd5 {[%clk 0:02:34.4]} 21. Bg3
{[%clk 0:02:05]} 21... Nc5 {[%clk 0:02:32.1]} 22. f4 {[%clk 0:02:02.2]} 22...
Bh4 {[%clk 0:02:31.2]} 23. Kg2 {[%clk 0:02:01.9]} 23... Bxg3 {[%clk 0:02:31.2]}
24. Kxg3 {[%clk 0:02:01.7]} 24... Qd7 {[%clk 0:02:13.5]} 25. f5 {[%clk
0:01:59.9]} 25... Qb5 {[%clk 0:02:12.2]} 26. Rad1 {[%clk 0:01:35.6]} 26... Re8
{[%clk 0:01:59.1]} 27. Nf3 {[%clk 0:01:34.5]} 27... Rac8 {[%clk 0:01:54.4]} 28.
Nxd4 {[%clk 0:01:29.6]} 28... Qb8 {[%clk 0:01:54]} 29. Nf3 {[%clk 0:01:28.8]}
29... f6 {[%clk 0:01:54.3]} 30. d4 {[%clk 0:01:24.5]} 30... Ne4+ {[%clk
0:01:54.5]} 31. Kg2 {[%clk 0:01:24.1]} 31... b3 {[%clk 0:01:50.8]} 32. axb3
{[%clk 0:01:19.9]} 32... fxe5 {[%clk 0:01:41.6]} 33. dxe5 {[%clk 0:01:18.5]}
33... Rxe5 {[%clk 0:01:42.5]} 34. Nxe5 {[%clk 0:01:13.6]} 34... Qxe5 {[%clk
0:01:43.4]} 35. Rf3 {[%clk 0:01:12.5]} 35... d4 {[%clk 0:01:26]} 36. Qd3 {[%clk
0:01:09.3]} 36... Ng5 {[%clk 0:01:21.8]} 37. Qxd4 {[%clk 0:00:56]} 37... Rc2+
{[%clk 0:01:19.4]} 38. Rf2 {[%clk 0:00:55.1]} 38... Rxf2+ {[%clk 0:01:16.6]} 39.
Kxf2 {[%clk 0:00:55.1]} 39... Qh2+ {[%clk 0:01:16.1]} 40. Kf1 {[%clk 0:00:49.1]}
40... Qh1+ {[%clk 0:01:14.4]} 41. Ke2 {[%clk 0:00:48.3]} 41... Qf3+ {[%clk
0:01:14]} 42. Kd2 {[%clk 0:00:47.5]} 42... Ne4+ {[%clk 0:01:07.5]} 43. Kc2
{[%clk 0:00:46.3]} 43... Qe2+ {[%clk 0:01:05.7]} 44. Kb1 {[%clk 0:00:45.3]}
44... Nf2 {[%clk 0:01:05]} 45. Rc1 {[%clk 0:00:40.1]} 45... Nd3 {[%clk 0:01:02]}
46. Rc8+ {[%clk 0:00:24.2]} 46... Kh7 {[%clk 0:00:59.7]} 47. b4 {[%clk 0:00:15]}
47... Qd1+ {[%clk 0:00:58.8]} 48. Ka2 {[%clk 0:00:14.6]} 48... Nxb4+ {[%clk
0:00:59]} 49. Qxb4 {[%clk 0:00:14.3]} 49... axb4 {[%clk 0:00:59.3]} 0-1

[Event "*** Titled Tuesday Blitz"]
[Site "Chess.com"]
[Date "2020.05.05"]
[Round "2"]
[White "Twitch_ElhamBlitz05"]
[Black "Boliviar"]
[Result "1-0"]
[WhiteElo "2646"]
[BlackElo "2314"]
[TimeControl "180+1"]
[EndTime "10:18:07 PDT"]
[Termination "Twitch_ElhamBlitz05 won on time"]

1. e4 {[%clk 0:03:00.9]} 1... c5 {[%clk 0:02:55.9]} 2. Ne2 {[%clk 0:02:59.4]}
2... Nf6 {[%clk 0:02:48.6]} 3. Nbc3 {[%clk 0:02:56.9]} 3... Nc6 {[%clk
0:02:47.4]} 4. d4 {[%clk 0:02:53]} 4... cxd4 {[%clk 0:02:48.3]} 5. Nxd4 {[%clk
0:02:53.9]} 5... g6 {[%clk 0:02:48.2]} 6. Bc4 {[%clk 0:02:52.5]} 6... Bg7 {[%clk
0:02:47.6]} 7. Bb3 {[%clk 0:02:52.6]} 7... d6 {[%clk 0:02:31.4]} 8. f3 {[%clk
0:02:52]} 8... O-O {[%clk 0:02:30.3]} 9. Be3 {[%clk 0:02:51.8]} 9... Na5 {[%clk
0:02:28]} 10. Qd2 {[%clk 0:02:51.7]} 10... Nxb3 {[%clk 0:02:27.9]} 11. axb3
{[%clk 0:02:52.6]} 11... a6 {[%clk 0:02:26.8]} 12. O-O {[%clk 0:02:52.6]} 12...
Bd7 {[%clk 0:02:22.3]} 13. Rad1 {[%clk 0:02:52.7]} 13... Qc7 {[%clk 0:02:15.1]}
14. Bh6 {[%clk 0:02:52.4]} 14... Qc5 {[%clk 0:02:01.9]} 15. Bxg7 {[%clk
0:02:52.6]} 15... Kxg7 {[%clk 0:02:02.8]} 16. Qf2 {[%clk 0:02:53.1]} 16... Rac8
{[%clk 0:01:58.8]} 17. Rd2 {[%clk 0:02:52.9]} 17... Bc6 {[%clk 0:01:43.6]} 18.
Rfd1 {[%clk 0:02:52.5]} 18... Rfd8 {[%clk 0:01:30.5]} 19. Ne6+ {[%clk
0:02:48.2]} 19... fxe6 {[%clk 0:01:21.2]} 20. Qxc5 {[%clk 0:02:48.1]} 20... dxc5
{[%clk 0:01:19.6]} 21. Rxd8 {[%clk 0:02:47.8]} 21... Rc7 {[%clk 0:01:19.5]} 22.
e5 {[%clk 0:02:43.2]} 22... Nd7 {[%clk 0:01:07.6]} 23. f4 {[%clk 0:02:41.4]}
23... Kf7 {[%clk 0:00:57.4]} 24. Kf2 {[%clk 0:02:40.9]} 24... b6 {[%clk
0:00:43.7]} 25. Ne4 {[%clk 0:02:34.7]} 25... h6 {[%clk 0:00:38.8]} 26. Ke3
{[%clk 0:02:21.3]} 26... Nf8 {[%clk 0:00:26.7]} 27. g4 {[%clk 0:02:04.2]} 27...
c4 {[%clk 0:00:26]} 28. bxc4 {[%clk 0:02:04.9]} 28... Bxe4 {[%clk 0:00:25.8]}
29. Kxe4 {[%clk 0:02:05.8]} 29... Rxc4+ {[%clk 0:00:26.2]} 30. Kd3 {[%clk
0:02:06.7]} 30... Rxf4 {[%clk 0:00:25.7]} 31. Kc3 {[%clk 0:02:07.4]} 31... g5
{[%clk 0:00:20.6]} 32. Rb8 {[%clk 0:02:07.8]} 32... Ng6 {[%clk 0:00:19.5]} 33.
Rxb6 {[%clk 0:02:08.5]} 33... Nxe5 {[%clk 0:00:19.6]} 34. Rxa6 {[%clk
0:02:09.3]} 34... Nxg4 {[%clk 0:00:17.8]} 35. b4 {[%clk 0:02:08.8]} 35... Ne3
{[%clk 0:00:16]} 36. Rd4 {[%clk 0:02:08.8]} 36... Nd5+ {[%clk 0:00:16]} 37. Rxd5
{[%clk 0:02:06.4]} 37... exd5 {[%clk 0:00:15.5]} 38. b5 {[%clk 0:02:07.2]} 38...
Rc4+ {[%clk 0:00:14.5]} 39. Kb3 {[%clk 0:02:07.7]} 39... h5 {[%clk 0:00:13]} 40.
Ra8 {[%clk 0:02:06.3]} 40... g4 {[%clk 0:00:10.3]} 41. Rb8 {[%clk 0:02:06.3]}
41... h4 {[%clk 0:00:09.7]} 42. b6 {[%clk 0:02:06.9]} 42... Rc6 {[%clk
0:00:08.1]} 43. b7 {[%clk 0:01:58.5]} 43... Rb6+ {[%clk 0:00:06.6]} 44. Kc3
{[%clk 0:01:59.1]} 44... g3 {[%clk 0:00:07.5]} 45. hxg3 {[%clk 0:02:00]} 45...
hxg3 {[%clk 0:00:07.4]} 46. Rh8 {[%clk 0:02:00.5]} 46... Rxb7 {[%clk 0:00:06.3]}
47. Rh7+ {[%clk 0:02:01.3]} 47... Ke6 {[%clk 0:00:06.2]} 48. Rh3 {[%clk
0:02:02.2]} 48... Kd6 {[%clk 0:00:06.4]} 49. Rxg3 {[%clk 0:02:02.4]} 49... e6
{[%clk 0:00:07]} 50. Rg6 {[%clk 0:02:02.8]} 50... Rc7+ {[%clk 0:00:07.2]} 51.
Kd3 {[%clk 0:02:03.6]} 51... Rc4 {[%clk 0:00:08.1]} 52. c3 {[%clk 0:02:04.4]}
52... Re4 {[%clk 0:00:08.2]} 53. Rg8 {[%clk 0:02:05]} 53... Rf4 {[%clk
0:00:07.6]} 54. Rd8+ {[%clk 0:02:05.5]} 54... Ke5 {[%clk 0:00:07.8]} 55. Re8
{[%clk 0:02:05.2]} 55... Rf3+ {[%clk 0:00:08]} 56. Kd2 {[%clk 0:02:06.1]} 56...
Rf4 {[%clk 0:00:07.5]} 57. Rh8 {[%clk 0:02:06.2]} 57... Kd6 {[%clk 0:00:06.8]}
58. Kd3 {[%clk 0:02:06.6]} 58... Rf3+ {[%clk 0:00:06.1]} 59. Kc2 {[%clk
0:02:05.7]} 59... Rg3 {[%clk 0:00:04.9]} 60. Kb3 {[%clk 0:02:04.1]} 60... d4
{[%clk 0:00:04]} 61. Rd8+ {[%clk 0:02:04.4]} 61... Ke5 {[%clk 0:00:04.3]} 62.
Rxd4 {[%clk 0:02:05.3]} 62... Kf5 {[%clk 0:00:02.1]} 63. Rd8 {[%clk 0:02:04.7]}
63... e5 {[%clk 0:00:02.2]} 64. Kc4 {[%clk 0:02:05.1]} 1-0

[Event "*** Titled Tuesday Blitz"]
[Site "Chess.com"]
[Date "2020.05.05"]
[Round "2"]
[White "Konavets"]
[Black "Gennady_Kozlov"]
[Result "0-1"]
[WhiteElo "2929"]
[BlackElo "2589"]
[TimeControl "180+1"]
[EndTime "10:18:08 PDT"]
[Termination "Gennady_Kozlov won by resignation"]

1. e4 {[%clk 0:03:00.9]} 1... e6 {[%clk 0:02:59.9]} 2. d4 {[%clk 0:02:58.5]}
2... d5 {[%clk 0:03:00.3]} 3. Nc3 {[%clk 0:02:59.4]} 3... Nf6 {[%clk 0:03:00]}
4. e5 {[%clk 0:02:59.6]} 4... Nfd7 {[%clk 0:02:59.4]} 5. f4 {[%clk 0:03:00.5]}
5... c5 {[%clk 0:02:59.9]} 6. Nf3 {[%clk 0:03:01.4]} 6... Nc6 {[%clk 0:03:00.2]}
7. Be3 {[%clk 0:03:02]} 7... Qb6 {[%clk 0:03:00.7]} 8. Na4 {[%clk 0:03:01.7]}
8... Qa5+ {[%clk 0:03:00.8]} 9. c3 {[%clk 0:03:02.4]} 9... cxd4 {[%clk
0:03:00.9]} 10. b4 {[%clk 0:03:03]} 10... Nxb4 {[%clk 0:03:01.2]} 11. cxb4
{[%clk 0:03:03.9]} 11... Bxb4+ {[%clk 0:03:01.1]} 12. Bd2 {[%clk 0:03:04.6]}
12... Bxd2+ {[%clk 0:03:01.8]} 13. Nxd2 {[%clk 0:03:05.5]} 13... a6 {[%clk
0:03:02.1]} 14. Nb2 {[%clk 0:03:02.3]} 14... Nc5 {[%clk 0:02:57.6]} 15. Rc1
{[%clk 0:03:01.9]} 15... Bd7 {[%clk 0:02:55.8]} 16. Bd3 {[%clk 0:02:25]} 16...
Ba4 {[%clk 0:01:58.8]} 17. Rxc5 {[%clk 0:02:22.3]} 17... Qxc5 {[%clk 0:01:59.7]}
18. Qxa4+ {[%clk 0:01:57.3]} 18... b5 {[%clk 0:01:59.2]} 19. Qc2 {[%clk
0:01:57.5]} 19... Qc3 {[%clk 0:01:55.9]} 20. Ke2 {[%clk 0:01:57]} 20... Rc8
{[%clk 0:01:51.6]} 21. Rc1 {[%clk 0:01:49.7]} 21... Ke7 {[%clk 0:01:51.5]} 22.
Nb3 {[%clk 0:01:39.3]} 22... f6 {[%clk 0:01:47.3]} 23. Qd2 {[%clk 0:01:30.9]}
23... Qxd2+ {[%clk 0:01:45.7]} 24. Kxd2 {[%clk 0:01:31.8]} 24... Rxc1 {[%clk
0:01:44.1]} 25. Nxc1 {[%clk 0:01:31.8]} 25... fxe5 {[%clk 0:01:39.8]} 26. fxe5
{[%clk 0:01:32.7]} 26... Rf8 {[%clk 0:01:39.7]} 27. Ke1 {[%clk 0:01:28.8]} 27...
g6 {[%clk 0:01:32.4]} 28. Ne2 {[%clk 0:01:28.3]} 28... Rc8 {[%clk 0:01:27.8]}
29. Bb1 {[%clk 0:01:07.6]} 29... a5 {[%clk 0:01:23.4]} 30. Bd3 {[%clk
0:01:06.3]} 30... b4 {[%clk 0:01:23.2]} 31. Nxd4 {[%clk 0:01:01.5]} 31... Rc1+
{[%clk 0:01:21]} 32. Kd2 {[%clk 0:00:57.1]} 32... Ra1 {[%clk 0:01:21]} 33. Nb3
{[%clk 0:00:55.1]} 33... Rxa2 {[%clk 0:01:19.8]} 34. Kc1 {[%clk 0:00:55.3]}
34... a4 {[%clk 0:01:18.4]} 35. Nd2 {[%clk 0:00:53.8]} 35... a3 {[%clk
0:01:12.9]} 36. Na4 {[%clk 0:00:49.9]} 36... Ra1+ {[%clk 0:01:12.6]} 37. Kc2
{[%clk 0:00:49.1]} 37... a2 {[%clk 0:01:12.7]} 38. Nb3 {[%clk 0:00:48.4]} 38...
Rb1 {[%clk 0:01:10.8]} 39. Nac5 {[%clk 0:00:47.9]} 39... a1=Q {[%clk 0:01:08.5]}
40. Nxa1 {[%clk 0:00:47.8]} 40... Rxa1 {[%clk 0:01:09.4]} 41. Be2 {[%clk
0:00:48.2]} 41... Ra2+ {[%clk 0:01:08.9]} 42. Kd3 {[%clk 0:00:47.7]} 42... Rb2
{[%clk 0:01:07.6]} 43. Bf3 {[%clk 0:00:47.3]} 43... b3 {[%clk 0:01:06.3]} 44. h4
{[%clk 0:00:41]} 44... h6 {[%clk 0:01:05.3]} 45. h5 {[%clk 0:00:23.1]} 45...
gxh5 {[%clk 0:01:04.5]} 46. Bxh5 {[%clk 0:00:18.6]} 46... Rxg2 {[%clk
0:01:03.7]} 47. Nxb3 {[%clk 0:00:18.9]} 47... Rg5 {[%clk 0:01:01.4]} 48. Bf3
{[%clk 0:00:18.4]} 48... Rxe5 {[%clk 0:01:01.4]} 49. Nd4 {[%clk 0:00:18.2]}
49... Rg5 {[%clk 0:01:01.5]} 50. Ne2 {[%clk 0:00:16.7]} 50... Kd6 {[%clk
0:00:58.6]} 51. Nf4 {[%clk 0:00:16.8]} 51... e5 {[%clk 0:00:52.8]} 52. Nxd5
{[%clk 0:00:15.1]} 52... Rg3 {[%clk 0:00:52.7]} 0-1

[Event "*** Titled Tuesday Blitz"]
[Site "Chess.com"]
[Date "2020.05.05"]
[Round "2"]
[White "Paladin61"]
[Black "Teo2000"]
[Result "1-0"]
[WhiteElo "2656"]
[BlackElo "2417"]
[TimeControl "180+1"]
[EndTime "10:18:08 PDT"]
[Termination "Paladin61 won on time"]

1. d4 {[%clk 0:03:00.9]} 1... Nf6 {[%clk 0:03:00]} 2. c4 {[%clk 0:02:59.8]} 2...
c5 {[%clk 0:03:00.1]} 3. d5 {[%clk 0:02:58.9]} 3... b5 {[%clk 0:03:00]} 4. cxb5
{[%clk 0:02:58.7]} 4... e6 {[%clk 0:02:59.3]} 5. Nc3 {[%clk 0:02:57.2]} 5...
exd5 {[%clk 0:02:58.4]} 6. Nxd5 {[%clk 0:02:57]} 6... Bb7 {[%clk 0:02:59.1]} 7.
e4 {[%clk 0:02:34.8]} 7... Nxe4 {[%clk 0:02:58.9]} 8. Bf4 {[%clk 0:02:05.1]}
8... Bd6 {[%clk 0:02:49.8]} 9. Bxd6 {[%clk 0:01:58.1]} 9... Nxd6 {[%clk
0:02:50.7]} 10. Qe2+ {[%clk 0:01:57.8]} 10... Kf8 {[%clk 0:02:44.4]} 11. O-O-O
{[%clk 0:01:56.1]} 11... a6 {[%clk 0:01:46.9]} 12. Qe5 {[%clk 0:01:33.5]} 12...
Ne8 {[%clk 0:01:11.8]} 13. Nf3 {[%clk 0:01:31]} 13... d6 {[%clk 0:01:01.9]} 14.
Qf4 {[%clk 0:01:15.5]} 14... Nd7 {[%clk 0:00:49.2]} 15. Ng5 {[%clk 0:01:01.6]}
15... Ndf6 {[%clk 0:00:34.5]} 16. Nxf6 {[%clk 0:00:36.4]} 16... Qxf6 {[%clk
0:00:35.4]} 17. Qxf6 {[%clk 0:00:35.3]} 17... gxf6 {[%clk 0:00:35.4]} 18. Nh3
{[%clk 0:00:30.3]} 18... axb5 {[%clk 0:00:33.6]} 19. Kb1 {[%clk 0:00:22]} 19...
b4 {[%clk 0:00:30.3]} 20. f3 {[%clk 0:00:21.5]} 20... Ke7 {[%clk 0:00:15.4]} 21.
Nf4 {[%clk 0:00:20.8]} 21... Rd8 {[%clk 0:00:05.8]} 22. Bc4 {[%clk 0:00:20.1]}
22... Nc7 {[%clk 0:00:05.6]} 23. Rhe1+ {[%clk 0:00:20]} 23... Kf8 {[%clk
0:00:05.3]} 24. Nh5 {[%clk 0:00:18]} 24... d5 {[%clk 0:00:05]} 25. Nxf6 {[%clk
0:00:18]} 25... Rd6 {[%clk 0:00:04]} 26. Ne4 {[%clk 0:00:09.9]} 26... dxe4
{[%clk 0:00:01.5]} 27. Rxd6 {[%clk 0:00:09]} 27... exf3 {[%clk 0:00:01.3]} 28.
gxf3 {[%clk 0:00:09.4]} 1-0

[Event "*** Titled Tuesday Blitz"]
[Site "Chess.com"]
[Date "2020.05.05"]
[Round "2"]
[White "larisakalinina"]
[Black "ljuks68"]
[Result "0-1"]
[WhiteElo "2031"]
[BlackElo "2366"]
[TimeControl "180+1"]
[EndTime "10:18:08 PDT"]
[Termination "ljuks68 won on time"]

1. e4 {[%clk 0:02:59.6]} 1... e6 {[%clk 0:02:59.4]} 2. d3 {[%clk 0:02:57.2]}
2... d5 {[%clk 0:02:59.8]} 3. Qe2 {[%clk 0:02:57.5]} 3... Be7 {[%clk 0:02:58.8]}
4. Nf3 {[%clk 0:02:55.1]} 4... Nf6 {[%clk 0:02:59.3]} 5. g3 {[%clk 0:02:54.2]}
5... O-O {[%clk 0:02:59.3]} 6. Bg2 {[%clk 0:02:54.4]} 6... b5 {[%clk 0:02:59.1]}
7. O-O {[%clk 0:02:53.3]} 7... Bb7 {[%clk 0:02:58.9]} 8. e5 {[%clk 0:02:52.7]}
8... Nfd7 {[%clk 0:02:58]} 9. d4 {[%clk 0:02:47.7]} 9... c5 {[%clk 0:02:57.3]}
10. c3 {[%clk 0:02:43]} 10... b4 {[%clk 0:02:57.4]} 11. Re1 {[%clk 0:02:39.4]}
11... Nc6 {[%clk 0:02:55.8]} 12. Nbd2 {[%clk 0:02:28.6]} 12... bxc3 {[%clk
0:02:53.7]} 13. bxc3 {[%clk 0:02:26.1]} 13... cxd4 {[%clk 0:02:54.1]} 14. cxd4
{[%clk 0:02:24.6]} 14... Nb4 {[%clk 0:02:53.8]} 15. Nb3 {[%clk 0:02:10.1]} 15...
Ba6 {[%clk 0:02:50.2]} 16. Qd1 {[%clk 0:02:10.1]} 16... Rc8 {[%clk 0:02:46.1]}
17. Nc5 {[%clk 0:01:41.3]} 17... Nxc5 {[%clk 0:02:25.5]} 18. dxc5 {[%clk
0:01:40.9]} 18... Bxc5 {[%clk 0:02:25.5]} 19. Qa4 {[%clk 0:01:21.3]} 19... Qe8
{[%clk 0:02:01.1]} 20. Qxe8 {[%clk 0:01:13.3]} 20... Rfxe8 {[%clk 0:02:00.1]}
21. Rd1 {[%clk 0:00:46]} 21... Nd3 {[%clk 0:01:15.4]} 22. Be3 {[%clk 0:00:33.4]}
22... Bxe3 {[%clk 0:01:13.4]} 23. fxe3 {[%clk 0:00:33.6]} 23... Rc2 {[%clk
0:01:06.3]} 24. Bf1 {[%clk 0:00:32.2]} 24... Nc5 {[%clk 0:01:00.8]} 25. Nd4
{[%clk 0:00:20.6]} 25... Rc3 {[%clk 0:00:53.9]} 26. Bxa6 {[%clk 0:00:13]} 26...
Nxa6 {[%clk 0:00:53.3]} 27. Kf2 {[%clk 0:00:12.5]} 27... Nc5 {[%clk 0:00:39.3]}
28. Kf3 {[%clk 0:00:07.7]} 28... Nd7 {[%clk 0:00:33.9]} 29. Kf4 {[%clk
0:00:06.1]} 29... g5+ {[%clk 0:00:29]} 30. Kxg5 {[%clk 0:00:04]} 30... Rxe3
{[%clk 0:00:28.1]} 31. Re1 {[%clk 0:00:01.3]} 31... Rxe5+ {[%clk 0:00:23.9]} 0-1